[Event "Titled Tuesday Blitz August 16 Early 2022"]
[White "Leschinsky, Gary"]
[Black "Suder, Jakub"]
[WhiteFideId "30951321"]
[BlackFideId "1195310"]
[WhiteElo "1809"]
[BlackElo "2095"]
[Result "0-1"]
[Round "10"]
[TimeControl "180+1"]
[Date "2022.08.16"]
[WhiteClock "0:00:56"]
[BlackClock "0:02:39"]

1. c4 {[%clk 0:03:00]}  e6 {[%clk 0:02:59]} 2. Nc3 {[%clk 0:03:00]}  d5 {[%clk 0:03:00]} 3. d4 {[%clk 0:03:00]}  a6 {[%clk 0:02:59]} 4. cxd5 {[%clk 0:02:54]}  exd5 {[%clk 0:03:00]} 5. Nf3 {[%clk 0:02:52]}  Nf6 {[%clk 0:03:01]} 6. Bg5 {[%clk 0:02:50]}  Be6 {[%clk 0:03:01]} 7. Bxf6 {[%clk 0:02:40]}  Qxf6 {[%clk 0:03:02]} 8. Qb3 {[%clk 0:02:40]}  Ra7 {[%clk 0:03:01]} 9. g3 {[%clk 0:02:19]}  Qd8 {[%clk 0:03:01]} 10. h4 {[%clk 0:02:17]}  c6 {[%clk 0:03:01]} 11. Bh3 {[%clk 0:02:16]}  Bxh3 {[%clk 0:03:01]} 12. Rxh3 {[%clk 0:02:17]}  Nd7 {[%clk 0:03:01]} 13. O-O-O {[%clk 0:02:16]}  Qb6 {[%clk 0:03:01]} 14. h5 {[%clk 0:02:02]}  Qxb3 {[%clk 0:02:59]} 15. axb3 {[%clk 0:02:01]}  Ra8 {[%clk 0:02:59]} 16. Kc2 {[%clk 0:02:01]}  f6 {[%clk 0:02:59]} 17. g4 {[%clk 0:01:56]}  Kf7 {[%clk 0:02:59]} 18. e3 {[%clk 0:01:55]}  Bd6 {[%clk 0:02:59]} 19. Rg1 {[%clk 0:01:45]}  Nb6 {[%clk 0:02:58]} 20. Nd2 {[%clk 0:01:41]}  a5 {[%clk 0:02:58]} 21. Ra1 {[%clk 0:01:38]}  Ra7 {[%clk 0:02:56]} 22. Na4 {[%clk 0:01:37]}  Nxa4 {[%clk 0:02:52]} 23. bxa4 {[%clk 0:01:37]}  b5 {[%clk 0:02:53]} 24. b3 {[%clk 0:01:33]}  Rb8 {[%clk 0:02:53]} 25. Rhh1 {[%clk 0:01:31]}  c5 {[%clk 0:02:53]} 26. dxc5 {[%clk 0:01:28]}  Bxc5 {[%clk 0:02:53]} 27. Kd3 {[%clk 0:01:23]}  Bb4 {[%clk 0:02:53]} 28. Nf3 {[%clk 0:01:21]}  Rc7 {[%clk 0:02:53]} 29. Rhc1 {[%clk 0:01:20]}  Rbc8 {[%clk 0:02:53]} 30. Rc4 {[%clk 0:01:20]}  dxc4+ {[%clk 0:02:48]} 31. bxc4 {[%clk 0:01:19]}  bxc4+ {[%clk 0:02:47]} 32. Ke2 {[%clk 0:01:19]}  Rd7 {[%clk 0:02:48]} 33. Nd4 {[%clk 0:01:19]}  Rxd4 {[%clk 0:02:47]} 34. exd4 {[%clk 0:01:19]}  c3 {[%clk 0:02:48]} 35. Kd3 {[%clk 0:01:18]}  Ke6 {[%clk 0:02:45]} 36. Re1+ {[%clk 0:01:17]}  Kd6 {[%clk 0:02:44]} 37. Rc1 {[%clk 0:01:16]}  Re8 {[%clk 0:02:43]} 38. Rc2 {[%clk 0:01:16]}  Re1 {[%clk 0:02:43]} 39. f4 {[%clk 0:01:16]}  Rd1+ {[%clk 0:02:44]} 40. Kc4 {[%clk 0:01:17]}  Rd2 {[%clk 0:02:44]} 41. Rc1 {[%clk 0:01:16]}  c2 {[%clk 0:02:44]} 42. Kb3 {[%clk 0:01:14]}  Kd5 {[%clk 0:02:44]} 43. g5 {[%clk 0:01:13]}  fxg5 {[%clk 0:02:44]} 44. fxg5 {[%clk 0:01:14]}  Kxd4 {[%clk 0:02:43]} 45. h6 {[%clk 0:01:13]}  gxh6 {[%clk 0:02:43]} 46. gxh6 {[%clk 0:01:14]}  Kd3 {[%clk 0:02:43]} 47. Rh1 {[%clk 0:01:12]}  Re2 {[%clk 0:02:39]} 48. Rh3+ {[%clk 0:01:09]}  Re3 {[%clk 0:02:39]} 49. Rh1 {[%clk 0:01:07]}  Bd2 {[%clk 0:02:39]} 50. Rc1 {[%clk 0:00:56]}  Bxc1 {[%clk 0:02:39]} 51. Ka2 {[%clk 0:00:57]}  Bd2 {[%clk 0:02:38]} 52. Kb3 {[%clk 0:00:55]}  c1=Q {[%clk 0:02:38]} 53. Ka2 {[%clk 0:00:56]}  Bc3 {[%clk 0:02:38]} 54. Kb3 {[%clk 0:00:56]}  Qb2# {[%clk 0:02:39]} 0-1


[Site "https://www.chess.com"]

[Event "Titled Tuesday Blitz August 16 Early 2022"]
[White "Martic, Ivan"]
[Black "Blanco Ronquillo, Humberto L."]
[WhiteFideId "929301"]
[BlackFideId "3504239"]
[WhiteElo "2355"]
[BlackElo "2425"]
[Result "1-0"]
[Round "10"]
[TimeControl "180+2"]
[Date "2022.08.18"]
[WhiteClock "0:00:00"]
[BlackClock "0:00:00"]

1. d4 {[%clk 0:00:00]}  Nf6 {[%clk 0:00:00]} 2. Nf3 {[%clk 0:00:00]}  d5 {[%clk 0:00:00]} 3. e3 {[%clk 0:00:00]}  c6 {[%clk 0:00:00]} 4. Bd3 {[%clk 0:00:00]}  Bg4 {[%clk 0:00:00]} 5. O-O {[%clk 0:00:00]}  Nbd7 {[%clk 0:00:00]} 6. c4 {[%clk 0:00:00]}  e6 {[%clk 0:00:00]} 7. Nbd2 {[%clk 0:00:00]}  Bd6 {[%clk 0:00:00]} 8. Qb3 {[%clk 0:00:00]}  Qc7 {[%clk 0:00:00]} 9. Re1 {[%clk 0:00:00]}  O-O {[%clk 0:00:00]} 10. c5 {[%clk 0:00:00]}  Be7 {[%clk 0:00:00]} 11. Qc3 {[%clk 0:00:00]}  Rfe8 {[%clk 0:00:00]} 12. b4 {[%clk 0:00:00]}  Bf8 {[%clk 0:00:00]} 13. Bb2 {[%clk 0:00:00]}  a6 {[%clk 0:00:00]} 14. Ne5 {[%clk 0:00:00]}  Nxe5 {[%clk 0:00:00]} 15. dxe5 {[%clk 0:00:00]}  Nd7 {[%clk 0:00:00]} 16. f4 {[%clk 0:00:00]}  Bf5 {[%clk 0:00:00]} 17. Bxf5 {[%clk 0:00:00]}  exf5 {[%clk 0:00:00]} 18. Nf3 {[%clk 0:00:00]}  a5 {[%clk 0:00:00]} 19. a3 {[%clk 0:00:00]}  axb4 {[%clk 0:00:00]} 20. axb4 {[%clk 0:00:00]}  Rxa1 {[%clk 0:00:00]} 21. Rxa1 {[%clk 0:00:00]}  b6 {[%clk 0:00:00]} 22. Nd4 {[%clk 0:00:00]}  bxc5 {[%clk 0:00:00]} 23. bxc5 {[%clk 0:00:00]}  Nxc5 {[%clk 0:00:00]} 24. Ba3 {[%clk 0:00:00]}  Qb6 {[%clk 0:00:00]} 25. Nxf5 {[%clk 0:00:00]}  Ne4 {[%clk 0:00:00]} 26. Qd4 {[%clk 0:00:00]}  Qb3 {[%clk 0:00:00]} 27. Bxf8 {[%clk 0:00:00]}  Kxf8 {[%clk 0:00:00]} 28. e6 {[%clk 0:00:00]}  f6 {[%clk 0:00:00]} 29. Qa7 {[%clk 0:00:00]}  Rxe6 {[%clk 0:00:00]} 30. Qxg7+ {[%clk 0:00:00]}  Ke8 {[%clk 0:00:00]} 31. Ra8+ {[%clk 0:00:00]} 1-0


[Site "https://www.chess.com"]

[Event "Titled Tuesday Blitz August 16 Early 2022"]
[White "McBryde, Lamel"]
[Black "Eynullayev, Altay"]
[WhiteFideId "2058596"]
[BlackFideId "13413562"]
[WhiteElo "2136"]
[BlackElo "2079"]
[Result "0-1"]
[Round "10"]
[TimeControl "180+2"]
[Date "2022.08.18"]
[WhiteClock "0:00:00"]
[BlackClock "0:00:00"]

1. Nf3 {[%clk 0:00:00]}  Nf6 {[%clk 0:00:00]} 2. b3 {[%clk 0:00:00]}  e6 {[%clk 0:00:00]} 3. Bb2 {[%clk 0:00:00]}  Be7 {[%clk 0:00:00]} 4. d4 {[%clk 0:00:00]}  O-O {[%clk 0:00:00]} 5. e3 {[%clk 0:00:00]}  d6 {[%clk 0:00:00]} 6. Bd3 {[%clk 0:00:00]}  Nbd7 {[%clk 0:00:00]} 7. Nbd2 {[%clk 0:00:00]}  Re8 {[%clk 0:00:00]} 8. c4 {[%clk 0:00:00]}  Bf8 {[%clk 0:00:00]} 9. Qc2 {[%clk 0:00:00]}  b6 {[%clk 0:00:00]} 10. g4 {[%clk 0:00:00]}  g6 {[%clk 0:00:00]} 11. g5 {[%clk 0:00:00]}  Nh5 {[%clk 0:00:00]} 12. h4 {[%clk 0:00:00]}  Bb7 {[%clk 0:00:00]} 13. O-O-O {[%clk 0:00:00]}  Bg7 {[%clk 0:00:00]} 14. Rhg1 {[%clk 0:00:00]}  a5 {[%clk 0:00:00]} 15. a3 {[%clk 0:00:00]}  Qe7 {[%clk 0:00:00]} 16. Nh2 {[%clk 0:00:00]}  e5 {[%clk 0:00:00]} 17. Ng4 {[%clk 0:00:00]}  a4 {[%clk 0:00:00]} 18. b4 {[%clk 0:00:00]}  c5 {[%clk 0:00:00]} 19. d5 {[%clk 0:00:00]}  cxb4 {[%clk 0:00:00]} 20. axb4 {[%clk 0:00:00]}  a3 {[%clk 0:00:00]} 21. Ba1 {[%clk 0:00:00]}  Rec8 {[%clk 0:00:00]} 22. Nh6+ {[%clk 0:00:00]}  Kh8 {[%clk 0:00:00]} 23. Be2 {[%clk 0:00:00]}  Bxh6 {[%clk 0:00:00]} 24. gxh6 {[%clk 0:00:00]}  Nhf6 {[%clk 0:00:00]} 25. e4 {[%clk 0:00:00]}  b5 {[%clk 0:00:00]} 26. f4 {[%clk 0:00:00]}  bxc4 {[%clk 0:00:00]} 27. fxe5 {[%clk 0:00:00]}  dxe5 {[%clk 0:00:00]} 28. h5 {[%clk 0:00:00]}  Qxb4 {[%clk 0:00:00]} 29. hxg6 {[%clk 0:00:00]}  fxg6 {[%clk 0:00:00]} 30. Nf3 {[%clk 0:00:00]}  c3 {[%clk 0:00:00]} 31. Ng5 {[%clk 0:00:00]}  Qb2+ {[%clk 0:00:00]} 32. Bxb2 {[%clk 0:00:00]}  axb2+ {[%clk 0:00:00]} 33. Qxb2 {[%clk 0:00:00]}  cxb2+ {[%clk 0:00:00]} 34. Kxb2 {[%clk 0:00:00]}  Ba6 {[%clk 0:00:00]} 35. Bxa6 {[%clk 0:00:00]}  Rxa6 {[%clk 0:00:00]} 36. Rd3 {[%clk 0:00:00]}  Nc5 {[%clk 0:00:00]} 37. Ra3 {[%clk 0:00:00]}  Rb6+ {[%clk 0:00:00]} 38. Ka2 {[%clk 0:00:00]}  Nfxe4 {[%clk 0:00:00]} 39. Nxe4 {[%clk 0:00:00]}  Nxe4 {[%clk 0:00:00]} 40. Re1 {[%clk 0:00:00]}  Rc2+ {[%clk 0:00:00]} 41. Ka1 {[%clk 0:00:00]}  Nf6 {[%clk 0:00:00]} 42. Rxe5 {[%clk 0:00:00]}  Rc1+ {[%clk 0:00:00]} 43. Ka2 {[%clk 0:00:00]}  Rc2+ {[%clk 0:00:00]} 0-1


[Site "https://www.chess.com"]

[Event "Titled Tuesday Blitz August 16 Early 2022"]
[White "Nakamura, Hikaru"]
[Black "So, Wesley"]
[WhiteFideId "2016192"]
[BlackFideId "5202213"]
[WhiteElo "2850"]
[BlackElo "2763"]
[Result "1-0"]
[Round "10"]
[TimeControl "180+1"]
[Date "2022.08.16"]
[WhiteClock "0:00:13"]
[BlackClock "0:00:03"]

1. Nf3 {[%clk 0:03:00]}  d5 {[%clk 0:02:54]} 2. e3 {[%clk 0:03:01]}  Nf6 {[%clk 0:02:52]} 3. c4 {[%clk 0:02:58]}  dxc4 {[%clk 0:02:51]} 4. Bxc4 {[%clk 0:02:57]}  e6 {[%clk 0:02:52]} 5. d4 {[%clk 0:02:56]}  c5 {[%clk 0:02:51]} 6. dxc5 {[%clk 0:02:53]}  Qxd1+ {[%clk 0:02:50]} 7. Kxd1 {[%clk 0:02:53]}  Bxc5 {[%clk 0:02:50]} 8. a3 {[%clk 0:02:53]}  O-O {[%clk 0:02:48]} 9. Ke2 {[%clk 0:02:52]}  Rd8 {[%clk 0:02:45]} 10. Nbd2 {[%clk 0:02:44]}  Be7 {[%clk 0:02:29]} 11. b3 {[%clk 0:02:39]}  a6 {[%clk 0:02:11]} 12. Bb2 {[%clk 0:02:34]}  Nbd7 {[%clk 0:02:07]} 13. Rhd1 {[%clk 0:01:52]}  Nc5 {[%clk 0:01:53]} 14. Kf1 {[%clk 0:01:44]}  b5 {[%clk 0:01:52]} 15. Be2 {[%clk 0:01:44]}  Bb7 {[%clk 0:01:52]} 16. b4 {[%clk 0:01:34]}  Na4 {[%clk 0:01:51]} 17. Bd4 {[%clk 0:01:34]}  Nd5 {[%clk 0:01:48]} 18. Rdc1 {[%clk 0:01:34]}  Rac8 {[%clk 0:01:46]} 19. Nb3 {[%clk 0:01:29]}  Ndc3 {[%clk 0:01:38]} 20. Na5 {[%clk 0:01:18]}  Be4 {[%clk 0:01:28]} 21. Ne1 {[%clk 0:01:04]}  Nxe2 {[%clk 0:01:11]} 22. Kxe2 {[%clk 0:01:04]}  f6 {[%clk 0:01:11]} 23. f3 {[%clk 0:00:58]}  Ba8 {[%clk 0:01:10]} 24. Nd3 {[%clk 0:00:48]}  e5 {[%clk 0:01:07]} 25. Bc5 {[%clk 0:00:48]}  Kf7 {[%clk 0:00:33]} 26. Bxe7 {[%clk 0:00:46]}  Kxe7 {[%clk 0:00:33]} 27. e4 {[%clk 0:00:46]}  Ke6 {[%clk 0:00:27]} 28. Ke3 {[%clk 0:00:38]}  g6 {[%clk 0:00:27]} 29. Nb3 {[%clk 0:00:32]}  Nb6 {[%clk 0:00:22]} 30. Ndc5+ {[%clk 0:00:31]}  Ke7 {[%clk 0:00:21]} 31. Na5 {[%clk 0:00:31]}  Rd6 {[%clk 0:00:19]} 32. Nxa6 {[%clk 0:00:25]}  Rcd8 {[%clk 0:00:17]} 33. Rc7+ {[%clk 0:00:23]}  Kf8 {[%clk 0:00:17]} 34. Nc5 {[%clk 0:00:23]}  h5 {[%clk 0:00:10]} 35. h4 {[%clk 0:00:20]}  f5 {[%clk 0:00:11]} 36. Kf2 {[%clk 0:00:19]}  f4 {[%clk 0:00:10]} 37. Kg1 {[%clk 0:00:18]}  Kg8 {[%clk 0:00:04]} 38. Kh2 {[%clk 0:00:18]}  Rd2 {[%clk 0:00:03]} 39. Nc6 {[%clk 0:00:16]}  Bxc6 {[%clk 0:00:02]} 40. Rxc6 {[%clk 0:00:17]}  Nc4 {[%clk 0:00:03]} 41. Rxg6+ {[%clk 0:00:17]}  Kf7 {[%clk 0:00:03]} 42. Rg5 {[%clk 0:00:15]}  Ne3 {[%clk 0:00:04]} 43. a4 {[%clk 0:00:14]}  Rb2 {[%clk 0:00:03]} 44. axb5 {[%clk 0:00:13]}  Rdd2 {[%clk 0:00:04]} 45. Ra7+ {[%clk 0:00:13]}  Kf6 {[%clk 0:00:03]} 46. Nd7+ {[%clk 0:00:12]}  Ke6 {[%clk 0:00:03]} 47. Nf8+ {[%clk 0:00:12]}  Kf6 {[%clk 0:00:03]} 48. Rg6# {[%clk 0:00:13]} 1-0


[Site "https://www.chess.com"]

[Event "Titled Tuesday Blitz August 16 Early 2022"]
[White "Nugumanov, Bakhtiyar"]
[Black "Vysochin, Spartak"]
[WhiteFideId "13701797"]
[BlackFideId "14103516"]
[WhiteElo "2287"]
[BlackElo "2355"]
[Result "1-0"]
[Round "10"]
[TimeControl "180+2"]
[Date "2022.08.18"]
[WhiteClock "0:00:00"]
[BlackClock "0:00:00"]

1. Nf3 {[%clk 0:00:00]}  d5 {[%clk 0:00:00]} 2. g3 {[%clk 0:00:00]}  Nf6 {[%clk 0:00:00]} 3. Bg2 {[%clk 0:00:00]}  Bf5 {[%clk 0:00:00]} 4. c4 {[%clk 0:00:00]}  e6 {[%clk 0:00:00]} 5. O-O {[%clk 0:00:00]}  Be7 {[%clk 0:00:00]} 6. cxd5 {[%clk 0:00:00]}  exd5 {[%clk 0:00:00]} 7. d3 {[%clk 0:00:00]}  O-O {[%clk 0:00:00]} 8. Qb3 {[%clk 0:00:00]}  b6 {[%clk 0:00:00]} 9. Nc3 {[%clk 0:00:00]}  c6 {[%clk 0:00:00]} 10. Bf4 {[%clk 0:00:00]}  Nbd7 {[%clk 0:00:00]} 11. Nd4 {[%clk 0:00:00]}  Be6 {[%clk 0:00:00]} 12. Nxe6 {[%clk 0:00:00]}  fxe6 {[%clk 0:00:00]} 13. e4 {[%clk 0:00:00]}  Nc5 {[%clk 0:00:00]} 14. Qc2 {[%clk 0:00:00]}  dxe4 {[%clk 0:00:00]} 15. dxe4 {[%clk 0:00:00]}  Nh5 {[%clk 0:00:00]} 16. Be3 {[%clk 0:00:00]}  Qc7 {[%clk 0:00:00]} 17. b4 {[%clk 0:00:00]}  Na6 {[%clk 0:00:00]} 18. a3 {[%clk 0:00:00]}  Nf6 {[%clk 0:00:00]} 19. Qb3 {[%clk 0:00:00]}  Qc8 {[%clk 0:00:00]} 20. Bh3 {[%clk 0:00:00]}  Kf7 {[%clk 0:00:00]} 21. Rac1 {[%clk 0:00:00]}  Nc7 {[%clk 0:00:00]} 22. Ne2 {[%clk 0:00:00]}  Nxe4 {[%clk 0:00:00]} 23. Nd4 {[%clk 0:00:00]}  Kg8 {[%clk 0:00:00]} 24. Rxc6 {[%clk 0:00:00]}  Qd7 {[%clk 0:00:00]} 25. Rxc7 {[%clk 0:00:00]}  Qxc7 {[%clk 0:00:00]} 26. Nxe6 {[%clk 0:00:00]}  Qc3 {[%clk 0:00:00]} 27. Qd5 {[%clk 0:00:00]}  Nf6 {[%clk 0:00:00]} 28. Qg5 {[%clk 0:00:00]}  Rf7 {[%clk 0:00:00]} 29. Bd4 {[%clk 0:00:00]}  Qf3 {[%clk 0:00:00]} 30. Bg2 {[%clk 0:00:00]}  Qg4 {[%clk 0:00:00]} 31. Bxf6 {[%clk 0:00:00]}  Qxg5 {[%clk 0:00:00]} 32. Bxg5 {[%clk 0:00:00]}  Bxg5 {[%clk 0:00:00]} 33. Nxg5 {[%clk 0:00:00]}  Rff8 {[%clk 0:00:00]} 34. Bxa8 {[%clk 0:00:00]}  Rxa8 {[%clk 0:00:00]} 35. Rd1 {[%clk 0:00:00]}  Rc8 {[%clk 0:00:00]} 36. Rd3 {[%clk 0:00:00]}  h6 {[%clk 0:00:00]} 37. Nf3 {[%clk 0:00:00]}  Rc7 {[%clk 0:00:00]} 38. Kg2 {[%clk 0:00:00]}  Kf7 {[%clk 0:00:00]} 39. h4 {[%clk 0:00:00]}  Ke6 {[%clk 0:00:00]} 40. Nd4+ {[%clk 0:00:00]}  Ke5 {[%clk 0:00:00]} 41. Nb5 {[%clk 0:00:00]}  Rf7 {[%clk 0:00:00]} 42. Re3+ {[%clk 0:00:00]}  Kd5 {[%clk 0:00:00]} 43. Nc3+ {[%clk 0:00:00]}  Kd4 {[%clk 0:00:00]} 44. Ne4 {[%clk 0:00:00]}  Re7 {[%clk 0:00:00]} 45. Nd6 {[%clk 0:00:00]}  Rd7 {[%clk 0:00:00]} 46. Nf5+ {[%clk 0:00:00]}  Kc4 {[%clk 0:00:00]} 47. Re7 {[%clk 0:00:00]}  Rxe7 {[%clk 0:00:00]} 48. Nxe7 {[%clk 0:00:00]}  Kb3 {[%clk 0:00:00]} 49. Nc6 {[%clk 0:00:00]}  Kxa3 {[%clk 0:00:00]} 50. Nxa7 {[%clk 0:00:00]}  Kxb4 {[%clk 0:00:00]} 51. Kf3 {[%clk 0:00:00]}  Kc3 {[%clk 0:00:00]} 52. Ke4 {[%clk 0:00:00]}  Kc4 {[%clk 0:00:00]} 53. f4 {[%clk 0:00:00]}  b5 {[%clk 0:00:00]} 54. Nxb5 {[%clk 0:00:00]}  Kxb5 {[%clk 0:00:00]} 55. Kf5 {[%clk 0:00:00]}  Kc6 {[%clk 0:00:00]} 56. Kg6 {[%clk 0:00:00]}  Kd6 {[%clk 0:00:00]} 57. Kxg7 {[%clk 0:00:00]}  Ke6 {[%clk 0:00:00]} 58. Kxh6 {[%clk 0:00:00]}  Kf6 {[%clk 0:00:00]} 59. g4 {[%clk 0:00:00]}  Kf7 {[%clk 0:00:00]} 60. Kh7 {[%clk 0:00:00]}  Kf8 {[%clk 0:00:00]} 61. g5 {[%clk 0:00:00]}  Kf7 {[%clk 0:00:00]} 62. g6+ {[%clk 0:00:00]}  Kf8 {[%clk 0:00:00]} 63. g7+ {[%clk 0:00:00]}  Kf7 {[%clk 0:00:00]} 64. g8=Q+ {[%clk 0:00:00]} 1-0


[Site "https://www.chess.com"]

[Event "Titled Tuesday Blitz August 16 Early 2022"]
[White "Papayan, Oleg"]
[Black "Sovetbekova, Nurai"]
[WhiteFideId "4193911"]
[BlackFideId "13801910"]
[WhiteElo "2038"]
[BlackElo "1646"]
[Result "1-0"]
[Round "10"]
[TimeControl "180+2"]
[Date "2022.08.18"]
[WhiteClock "0:00:00"]
[BlackClock "0:00:00"]

1. e4 {[%clk 0:00:00]}  c5 {[%clk 0:00:00]} 2. Nf3 {[%clk 0:00:00]}  d6 {[%clk 0:00:00]} 3. d4 {[%clk 0:00:00]}  cxd4 {[%clk 0:00:00]} 4. Nxd4 {[%clk 0:00:00]}  Nf6 {[%clk 0:00:00]} 5. Nc3 {[%clk 0:00:00]}  a6 {[%clk 0:00:00]} 6. f3 {[%clk 0:00:00]}  e5 {[%clk 0:00:00]} 7. Nb3 {[%clk 0:00:00]}  Nbd7 {[%clk 0:00:00]} 8. g4 {[%clk 0:00:00]}  Be7 {[%clk 0:00:00]} 9. Be3 {[%clk 0:00:00]}  b5 {[%clk 0:00:00]} 10. Qd2 {[%clk 0:00:00]}  Bb7 {[%clk 0:00:00]} 11. O-O-O {[%clk 0:00:00]}  Qc7 {[%clk 0:00:00]} 12. Kb1 {[%clk 0:00:00]}  Nc5 {[%clk 0:00:00]} 13. g5 {[%clk 0:00:00]}  Nfd7 {[%clk 0:00:00]} 14. Nd5 {[%clk 0:00:00]}  Bxd5 {[%clk 0:00:00]} 15. Qxd5 {[%clk 0:00:00]}  Nb6 {[%clk 0:00:00]} 16. Qd2 {[%clk 0:00:00]}  Nxb3 {[%clk 0:00:00]} 17. cxb3 {[%clk 0:00:00]}  O-O {[%clk 0:00:00]} 18. Rc1 {[%clk 0:00:00]}  Qb7 {[%clk 0:00:00]} 19. h4 {[%clk 0:00:00]}  Rfd8 {[%clk 0:00:00]} 20. Qa5 {[%clk 0:00:00]}  Nd7 {[%clk 0:00:00]} 21. Rc7 {[%clk 0:00:00]}  Qb8 {[%clk 0:00:00]} 22. Bh3 {[%clk 0:00:00]}  Nc5 {[%clk 0:00:00]} 23. Rxe7 {[%clk 0:00:00]}  Kf8 {[%clk 0:00:00]} 24. Qc7 {[%clk 0:00:00]}  Qxc7 {[%clk 0:00:00]} 25. Rxc7 {[%clk 0:00:00]}  a5 {[%clk 0:00:00]} 26. Rd1 {[%clk 0:00:00]}  Na6 {[%clk 0:00:00]} 27. Rd7 {[%clk 0:00:00]}  Rdc8 {[%clk 0:00:00]} 28. R7xd6 {[%clk 0:00:00]}  Rc7 {[%clk 0:00:00]} 29. Bb6 {[%clk 0:00:00]}  Rb7 {[%clk 0:00:00]} 30. Bxa5 {[%clk 0:00:00]}  Nc5 {[%clk 0:00:00]} 31. Bb4 {[%clk 0:00:00]}  Na6 {[%clk 0:00:00]} 32. Rd8# {[%clk 0:00:00]} 1-0


[Site "https://www.chess.com"]

[Event "Titled Tuesday Blitz August 16 Early 2022"]
[White "Pastar, Slaven"]
[Black "Petrovic, Aleksa"]
[WhiteFideId "14402718"]
[BlackFideId "967629"]
[WhiteElo "2248"]
[BlackElo "2262"]
[Result "1-0"]
[Round "10"]
[TimeControl "180+2"]
[Date "2022.08.18"]
[WhiteClock "0:00:00"]
[BlackClock "0:00:00"]

1. b3 {[%clk 0:00:00]}  e5 {[%clk 0:00:00]} 2. Bb2 {[%clk 0:00:00]}  Nc6 {[%clk 0:00:00]} 3. Nf3 {[%clk 0:00:00]}  e4 {[%clk 0:00:00]} 4. Nd4 {[%clk 0:00:00]}  Bc5 {[%clk 0:00:00]} 5. Nxc6 {[%clk 0:00:00]}  dxc6 {[%clk 0:00:00]} 6. Bxg7 {[%clk 0:00:00]}  Nf6 {[%clk 0:00:00]} 7. Bxh8 {[%clk 0:00:00]}  Qd4 {[%clk 0:00:00]} 8. e3 {[%clk 0:00:00]}  Qxa1 {[%clk 0:00:00]} 9. Nc3 {[%clk 0:00:00]}  Qxd1+ {[%clk 0:00:00]} 10. Kxd1 {[%clk 0:00:00]}  Bg4+ {[%clk 0:00:00]} 11. Be2 {[%clk 0:00:00]}  Bxe2+ {[%clk 0:00:00]} 12. Kxe2 {[%clk 0:00:00]} 1-0


[Site "https://www.chess.com"]

[Event "Titled Tuesday Blitz August 16 Early 2022"]
[White "Piesik, Piotr"]
[Black "Baches Garcia, Guillermo"]
[WhiteFideId "1136194"]
[BlackFideId "2209764"]
[WhiteElo "2221"]
[BlackElo "2533"]
[Result "1/2-1/2"]
[Round "10"]
[TimeControl "180+1"]
[Date "2022.08.16"]
[WhiteClock "0:02:03"]
[BlackClock "0:00:31"]

1. Nf3 {[%clk 0:03:00]}  Nf6 {[%clk 0:02:59]} 2. g3 {[%clk 0:03:01]}  g6 {[%clk 0:02:59]} 3. Bg2 {[%clk 0:03:01]}  Bg7 {[%clk 0:03:00]} 4. O-O {[%clk 0:03:02]}  O-O {[%clk 0:03:00]} 5. d4 {[%clk 0:03:02]}  d6 {[%clk 0:03:00]} 6. Nbd2 {[%clk 0:03:03]}  Nbd7 {[%clk 0:02:49]} 7. e4 {[%clk 0:03:02]}  e5 {[%clk 0:02:48]} 8. dxe5 {[%clk 0:03:03]}  dxe5 {[%clk 0:02:48]} 9. Qe2 {[%clk 0:03:03]}  Qe7 {[%clk 0:02:43]} 10. b3 {[%clk 0:03:02]}  Re8 {[%clk 0:02:31]} 11. Bb2 {[%clk 0:03:01]}  b6 {[%clk 0:02:20]} 12. Rfd1 {[%clk 0:02:59]}  Bb7 {[%clk 0:02:19]} 13. a4 {[%clk 0:02:58]}  Nc5 {[%clk 0:02:08]} 14. Ne1 {[%clk 0:02:38]}  Ba6 {[%clk 0:01:44]} 15. Nc4 {[%clk 0:02:34]}  Qe6 {[%clk 0:01:37]} 16. f3 {[%clk 0:02:34]}  Bxc4 {[%clk 0:01:30]} 17. Qxc4 {[%clk 0:02:33]}  Qxc4 {[%clk 0:01:25]} 18. bxc4 {[%clk 0:02:34]}  Rad8 {[%clk 0:01:18]} 19. Nd3 {[%clk 0:02:30]}  Nfd7 {[%clk 0:01:10]} 20. Bh3 {[%clk 0:02:26]}  Nxd3 {[%clk 0:01:03]} 21. cxd3 {[%clk 0:02:24]}  Nc5 {[%clk 0:01:02]} 22. Bf1 {[%clk 0:02:22]}  a5 {[%clk 0:00:51]} 23. Bc1 {[%clk 0:02:18]}  Nb3 {[%clk 0:00:46]} 24. Be3 {[%clk 0:02:18]}  Nxa1 {[%clk 0:00:44]} 25. Rxa1 {[%clk 0:02:15]}  c5 {[%clk 0:00:42]} 26. Rb1 {[%clk 0:02:14]}  Rd6 {[%clk 0:00:41]} 27. Kf2 {[%clk 0:02:13]}  f6 {[%clk 0:00:42]} 28. Ke2 {[%clk 0:02:12]}  h5 {[%clk 0:00:41]} 29. Bh3 {[%clk 0:02:08]}  Kh7 {[%clk 0:00:35]} 30. Bf2 {[%clk 0:02:04]}  Bh6 {[%clk 0:00:31]} 31. Rb3 {[%clk 0:02:03]}  Red8 {[%clk 0:00:31]} 32. Bg1 {[%clk 0:02:03]}  Kg7 {[%clk 0:00:31]} 33. Bf2 {[%clk 0:02:02]}  Kf7 {[%clk 0:00:31]} 34. Bg1 {[%clk 0:02:02]}  Ke7 {[%clk 0:00:30]} 35. Bf2 {[%clk 0:02:02]}  Kf7 {[%clk 0:00:31]} 36. Bg1 {[%clk 0:02:02]}  Ke7 {[%clk 0:00:31]} 37. Bf2 {[%clk 0:02:03]}  Kf7 {[%clk 0:00:31]} 1/2-1/2


[Site "https://www.chess.com"]